bitfinex/quotes_ETHUSD_20260106
["timestamp","ask_amount","ask_price","bid_price","bid_amount"]
[1767674586527,0.001,3221.4,3221.2,0.91219434]
[1767674586729,0.001,3221.4,3221.2,1.31427626]
[1767674591362,0.001,3221.4,3221.2,0.91219434]
[1767674610273,0.001,3221.4,3221.2,4.01660941]
[1767674610770,0.001,3221.4,3221.2,0.91219434]
[1767674612274,0.001,3221.4,3221.3,0.9003389]
[1767674615478,0.001,3221.7,3221.3,0.9003389]
[1767674615972,0.30926562,3221.8,3221.1,4.00682612]
[1767674616276,0.30926562,3221.8,3221.1,0.9023389]
[1767674617160,0.30926562,3221.8,3221.1,4.00685391]
[1767674617456,0.30926562,3221.8,3221.1,4.79971004]
[1767674618690,0.03566899,3221.8,3221.1,3.89937114]
[1767674618883,0.001,3222.0,3221.3,0.9003389]
[1767674619090,0.0175131,3222.0,3221.3,0.9003389]
[1767674620760,0.0175131,3222.0,3221.2,3.10434707]
[1767674621058,0.0175131,3222.0,3221.2,3.80492757]
[1767674621288,0.0175131,3222.0,3221.2,4.70526647]
[1767674622186,0.0175131,3222.0,3221.4,0.002]
[1767674631293,0.001,3222.0,3221.4,0.9023389]
[1767674634595,0.001,3222.0,3221.7,0.002]
[1767674641764,0.001,3222.0,3221.7,0.97635429]
[1767674642380,0.001,3222.0,3221.8,0.97435429]
[1767674647309,0.001,3222.0,3221.7,0.002]
[1767674648176,0.001,3222.0,3221.7,0.97635429]
[1767674649103,0.001,3222.0,3221.7,0.002]
[1767674649315,0.01751253,3222.0,3221.7,0.002]
[1767674649984,0.01751253,3222.0,3221.4,0.002]
[1767674651691,0.01751253,3222.0,3221.4,0.97635429]
[1767674653729,0.001,3222.0,3221.4,0.97635429]
[1767674659808,0.001,3222.0,3221.7,0.002]
[1767674665417,0.001,3222.0,3221.7,0.97635429]
[1767674670094,0.001,3222.0,3221.7,0.002]
[1767674670292,0.01751227,3222.0,3221.4,0.002]
[1767674670594,0.48124275,3222.0,3221.4,0.002]
[1767674671720,0.001,3221.7,3221.4,0.002]
[1767674678613,0.001,3221.7,3221.4,0.91140845]
[1767674684253,0.001,3221.7,3221.4,0.002]
[1767674690992,0.001,3221.7,3221.2,0.90740039]
[1767674691485,0.46473046,3221.7,3221.1,0.002]
[1767674692161,0.46473046,3221.7,3221.1,0.91140845]
[1767674695303,0.09324154,3221.5,3220.9,0.97559757]
[1767674695681,0.001,3221.4,3220.9,0.97559757]
[1767674695881,0.47425541,3221.4,3220.9,0.97559757]
[1767674696708,0.01852005,3221.3,3220.7,0.00099396]
[1767674696874,0.01852005,3221.3,3220.7,0.97459153]
[1767674698173,0.47425541,3221.4,3220.7,0.97459153]
[1767674698374,0.001,3221.4,3220.7,0.97459153]
[1767674699907,0.01952003,3221.4,3220.7,0.97459153]
[1767674700281,0.01852002,3221.2,3220.7,0.00099396]
[1767674700481,0.01852002,3221.1,3220.4,0.97559757]
[1767674701104,0.01852002,3221.1,3220.5,0.90510081]
[1767674701315,0.09324154,3221.2,3220.5,0.90510081]
[1767674701510,0.56649695,3221.2,3220.5,0.90510081]
[1767674704518,0.47325541,3221.2,3220.5,0.90510081]
[1767674704814,0.001,3221.4,3220.6,0.90310081]
[1767674705705,0.001,3221.4,3220.8,0.90310081]
[1767674706497,0.09324154,3221.3,3220.4,0.90310081]
[1767674706837,0.4732554,3221.2,3220.4,0.90310081]
[1767674707604,0.4732554,3221.2,3220.8,0.002]
[1767674710538,0.09324154,3221.3,3220.8,0.002]
[1767674720363,0.001,3221.0,3220.8,0.002]
[1767674722251,0.001,3221.0,3220.1,0.00099396]
[1767674722252,0.09324154,3220.5,3220.1,0.00099396]
[1767674722571,0.09324154,3220.5,3219.8,0.90310081]
[1767674724672,0.43953928,3220.5,3219.8,0.90310081]
[1767674725174,0.09324154,3220.4,3219.8,0.90310081]
[1767674727678,0.17152591,3220.6,3219.8,0.90310081]
[1767674728570,0.09324154,3220.7,3219.8,0.90310081]
[1767674728882,3.19802878,3220.9,3219.8,0.90310081]
[1767674728883,0.98552587,3220.8,3219.8,0.90310081]
[1767674729079,0.09324154,3220.6,3219.8,0.90310081]
[1767674729250,0.51160837,3220.6,3219.8,0.90310081]
[1767674732163,0.001,3220.3,3219.8,0.90310081]
[1767674737593,0.26476736,3220.6,3220.0,0.9846191]
[1767674737766,0.09324154,3220.7,3220.0,0.9846191]
[1767674737971,0.17152582,3220.6,3220.0,0.9846191]
[1767674741603,0.09324154,3220.7,3220.0,0.9846191]
[1767674742281,0.93181413,3221.0,3220.0,0.9846191]
[1767674742485,0.001,3221.0,3220.1,0.9846191]
[1767674744186,0.001,3221.0,3220.1,0.9866191]
[1767674744601,0.001,3220.3,3220.1,0.9866191]
[1767674744807,0.26476733,3220.9,3220.3,0.9846191]
[1767674745023,0.51788019,3220.9,3220.3,0.9846191]
[1767674745716,0.17152579,3220.9,3220.3,0.9846191]
[1767674749305,0.001,3221.0,3220.3,0.9846191]
[1767674751627,0.09324154,3220.9,3220.3,0.9846191]
[1767674755628,0.09324154,3220.7,3220.1,0.002]
[1767674755818,0.17152574,3220.8,3220.1,0.002]
[1767674756020,0.26476728,3220.6,3220.1,0.002]
[1767674756326,0.09324154,3220.4,3220.1,0.002]
[1767674756506,0.09324154,3220.4,3219.8,0.95635949]
[1767674756507,0.09324154,3220.4,3219.8,0.95334941]
[1767674756907,0.09324154,3220.2,3219.8,0.95334941]
[1767674757909,0.09324154,3220.4,3219.8,0.95334941]
[1767674757910,0.17253581,3220.5,3219.8,0.95334941]
[1767674758128,0.09424154,3220.6,3219.8,0.95334941]
[1767674758532,0.31992389,3220.5,3219.8,0.95334941]
[1767674758833,0.09424154,3220.6,3219.8,0.95334941]
[1767674759714,0.001,3220.6,3219.8,0.98440723]
[1767674759935,0.001,3220.6,3219.8,0.95334941]
[1767674760440,0.001,3220.6,3220.0,0.95435949]
[1767674762556,0.001,3220.6,3220.1,1.00080825]
[1767674762761,0.001,3221.0,3220.6,0.96975332]
[1767674764546,0.814,3221.2,3220.7,0.96975332]
[1767674765829,0.09424154,3221.4,3220.7,0.96975332]
[1767674766029,0.09324154,3221.2,3220.7,0.96975332]
[1767674769749,0.09324154,3221.2,3221.0,0.002]
[1767674775274,0.43966862,3221.2,3221.0,0.002]
[1767674776298,0.09324154,3221.2,3221.0,0.002]
[1767674782706,0.09424154,3221.4,3221.0,0.002]
[1767674782905,0.09324154,3221.2,3221.0,0.002]
[1767674789304,0.001,3221.4,3221.1,0.96726741]
[1767674796324,0.09324154,3221.6,3221.4,0.93551533]
[1767674796490,0.815,3221.7,3221.1,0.93551533]
[1767674796894,0.09324154,3221.6,3221.1,0.93551533]
[1767674799007,0.09324154,3221.6,3220.6,3.10696992]
[1767674799008,0.09324154,3221.2,3220.7,0.93551533]
[1767674799233,0.09324154,3221.2,3219.7,3.10583982]
[1767674799234,4.89059994,3221.0,3220.3,0.93551533]
[1767674799439,0.09324154,3220.8,3220.3,0.93551533]
[1767674799600,0.09324154,3220.6,3220.1,0.93551533]
[1767674800728,0.26826313,3220.8,3220.1,0.93551533]
[1767674801820,0.09324154,3220.8,3220.1,0.93551533]
[1767674802020,0.59162569,3220.8,3220.1,0.93551533]
[1767674806844,0.59162569,3220.8,3220.4,0.002]
[1767674815447,0.76664724,3220.8,3220.4,0.002]
[1767674818968,0.49838415,3220.8,3220.4,0.002]
[1767674819164,0.49838415,3220.8,3220.4,0.99837882]
[1767674819359,4.18674751,3221.2,3220.4,0.99837882]
[1767674821384,0.09324154,3221.0,3220.4,0.99837882]
[1767674822780,4.18674751,3221.2,3220.4,0.99837882]
[1767674823077,0.09324154,3221.0,3220.4,0.99837882]
[1767674823277,0.42799891,3221.0,3220.4,0.99837882]
[1767674823446,1.08226308,3221.2,3220.4,0.99837882]
[1767674823644,4.18670326,3221.2,3220.4,0.99837882]
[1767674824166,0.09324154,3221.0,3220.4,0.99837882]
[1767674827765,4.18670326,3221.2,3220.4,0.99837882]
[1767674828972,4.01168172,3221.2,3220.4,0.99837882]
[1767674829262,0.86340185,3221.1,3220.4,0.99837882]
[1767674829879,0.09324154,3221.0,3220.4,0.99837882]
[1767674831687,0.95664339,3221.1,3220.4,0.99837882]
[1767674832053,0.001,3220.7,3220.4,0.99837882]
[1767674853918,0.90724154,3221.2,3220.6,0.91464522]
[1767674854216,0.41867146,3221.1,3220.6,0.91464522]
[1767674855333,1.08226303,3221.2,3220.6,0.91464522]
[1767674857192,4.1867002,3221.2,3220.6,0.91464522]
[1767674857718,4.1867002,3221.2,3220.4,0.002]
[1767674857719,0.17502148,3221.1,3220.4,0.91664522]
[1767674858032,0.26826302,3221.0,3220.4,0.91664522]
[1767674858527,0.26826302,3221.0,3220.4,0.002]
[1767674858691,0.69625719,3221.0,3220.4,0.002]
[1767674860318,0.69625719,3221.0,3220.4,0.91664522]
[1767674860726,0.42799417,3221.0,3220.4,0.91664522]
[1767674861332,0.90724154,3221.2,3220.4,0.91664522]
[1767674861494,1.08226302,3221.2,3220.4,0.91664522]
[1767674862001,4.1866981,3221.2,3220.4,0.91664522]
[1767674867622,4.1866981,3221.2,3220.7,0.002]
[1767674867919,4.1866981,3221.2,3220.4,0.91664522]
[1767674868105,0.001,3220.9,3220.4,0.91664522]
[1767674880621,0.001,3220.9,3220.6,0.92363415]
[1767674880806,0.001,3220.9,3220.7,0.002]
[1767674881232,0.001,3220.9,3220.4,0.002]
[1767674886106,0.001,3220.9,3220.4,0.91608849]
[1767674892543,0.001,3220.9,3220.7,0.002]
[1767674893849,0.32905961,3220.9,3220.7,0.002]
[1767674895152,0.001,3220.9,3220.7,0.002]
[1767674895958,0.001,3220.9,3220.7,0.91608849]
[1767674922966,3.10404767,3221.6,3220.9,0.99458483]
[1767674923274,0.09324154,3221.6,3220.9,0.69223344]
[1767674925164,3.10414403,3221.5,3220.9,0.69223344]
[1767674925363,3.86361929,3221.5,3220.9,0.69223344]
[1767674927261,0.09324154,3221.4,3220.9,0.69223344]
[1767674927665,0.09324154,3221.4,3220.4,0.99658483]
[1767674927666,4.62301313,3221.1,3220.4,0.99658483]
[1767674927869,0.09324154,3221.0,3220.4,0.99658483]
[1767674928075,0.70342844,3221.0,3220.4,0.99658483]
[1767674929674,3.80805898,3221.0,3220.4,0.99658483]
[1767674935791,0.70342844,3221.0,3220.4,0.99658483]
[1767674935990,3.80806806,3221.0,3220.4,0.99658483]
[1767674938306,0.70342844,3221.0,3220.4,0.99658483]
[1767674940209,0.38079985,3220.9,3220.4,0.99658483]
[1767674940898,0.38079985,3220.9,3220.7,0.002]
[1767674941368,0.6101869,3221.0,3220.7,0.002]
[1767674941577,0.6101869,3221.0,3220.7,0.90543268]
[1767674942810,3.71482958,3221.0,3220.7,0.90543268]
[1767674943607,3.71482958,3221.0,3220.7,0.002]
[1767674945142,0.6101869,3221.0,3220.7,0.002]
[1767674947088,0.70342844,3221.0,3220.7,0.002]
[1767674947290,0.38079871,3220.9,3220.7,0.002]
[1767674948694,0.6101869,3221.0,3220.7,0.002]
[1767674950615,0.6101869,3221.0,3220.7,0.90543268]
[1767674951822,3.80808222,3221.0,3220.5,0.90343268]
[1767674953717,0.001,3220.7,3220.5,0.90343268]
[1767674957542,0.001,3220.7,3220.4,0.002]
[1767674961643,0.001,3220.7,3220.4,0.90543268]
[1767674966354,0.001,3220.7,3220.4,0.60543268]
[1767674978453,0.001,3220.7,3220.4,0.60743268]
[1767674982566,0.815,3221.2,3220.7,0.90945616]
[1767674982766,0.93171017,3221.2,3220.7,0.90945616]
[1767674983135,0.001,3221.2,3220.7,0.90945616]
[1767674983461,0.001,3221.2,3220.8,0.90945616]
[1767674983665,0.001,3221.2,3220.9,0.90945616]
[1767674988259,0.001,3221.2,3220.5,0.90945616]
[1767674990784,0.001,3220.9,3220.5,0.90945616]
[1767674992194,0.001,3220.9,3220.6,0.90945616]
[1767674992496,0.001,3221.2,3220.6,0.90945616]
[1767674992657,0.001,3221.2,3220.5,3.10510152]
[1767674992658,0.001,3221.2,3220.8,0.90945616]
[1767675002189,0.001,3221.2,3220.9,0.93427358]
[1767675004932,0.001,3221.2,3220.9,0.90322636]
[1767675005336,0.001,3221.2,3220.8,0.002]
[1767675005337,0.001,3221.2,3221.0,0.93427261]
[1767675005631,0.001,3221.2,3221.0,0.90322636]
[1767675008321,0.001,3221.2,3220.8,0.90522636]
[1767675008633,0.001,3221.2,3220.8,0.002]
[1767675009209,0.39849367,3221.2,3220.8,0.002]
[1767675010026,0.77637279,3221.1,3220.8,0.002]
[1767675010520,3.50293298,3221.2,3220.8,0.002]
[1767675012644,0.39849367,3221.2,3220.8,0.002]
[1767675014713,0.001,3220.9,3220.8,0.002]
[1767675040258,0.001,3220.9,3220.8,0.92468935]
[1767675050577,0.001,3220.9,3220.8,0.002]
[1767675052877,0.001,3220.9,3220.8,0.92468935]
[1767675053180,0.001,3221.2,3220.8,0.92468935]
[1767675053374,0.001,3221.2,3220.8,1.32765822]
[1767675053950,0.001,3221.2,3220.8,0.92468935]
[1767675062492,0.001,3220.9,3220.8,0.92468935]
[1767675062786,0.001,3221.2,3220.8,0.92468935]
[1767675074404,0.001,3220.9,3220.8,0.92468935]
[1767675074574,0.001,3221.2,3220.8,0.002]
[1767675074766,0.001,3221.2,3220.8,0.6421487]
[1767675076904,0.001,3221.2,3220.8,1.60619609]
[1767675080714,0.001,3221.2,3220.8,0.96604739]
[1767675086318,0.001,3220.9,3220.8,0.96604739]
[1767675086493,0.001,3221.2,3220.8,0.002]
[1767675094928,0.001,3221.2,3220.8,0.91433285]
[1767675098030,0.001,3220.9,3220.8,0.91433285]
[1767675098220,0.001,3221.2,3220.8,1.08706614]
[1767675098526,0.001,3221.2,3220.8,0.17473329]
[1767675098826,0.77737278,3221.2,3220.8,0.17473329]
[1767675099029,0.77737278,3221.2,3220.8,0.002]
[1767675099330,0.09324154,3221.1,3220.5,0.002]
[1767675099517,0.77637278,3220.8,3220.0,0.002]
[1767675099710,0.77637278,3220.6,3220.0,0.002]
[1767675100305,1.16450157,3220.6,3220.0,0.002]
[1767675100632,0.77637278,3220.5,3220.0,0.002]
[1767675103503,0.77637278,3220.4,3220.0,0.002]
[1767675103903,0.77637278,3220.3,3220.0,0.002]
[1767675105706,0.77637278,3220.3,3219.5,0.91233285]
[1767675105907,3.88180754,3220.2,3219.5,0.91233285]
[1767675106931,0.77637278,3220.2,3219.5,0.91233285]
[1767675108509,0.91233285,3220.4,3219.5,0.91233285]
[1767675108711,1.68870563,3220.4,3219.5,0.91233285]
[1767675109238,4.79392713,3220.4,3219.5,0.91233285]
[1767675109437,4.79392713,3220.4,3219.6,0.91233285]
[1767675110427,4.79392713,3220.4,3220.0,0.002]
[1767675110923,1.68870563,3220.4,3220.0,0.002]
[1767675112509,4.79391852,3220.4,3220.0,0.002]
[1767675112856,1.68870563,3220.4,3220.0,0.002]
[1767675113042,0.47938405,3220.3,3220.0,0.002]
[1767675117755,0.91233285,3220.4,3220.0,0.002]
[1767675118052,0.91233285,3220.4,3220.0,0.91201642]
[1767675118430,0.91233285,3220.4,3220.0,0.002]
[1767675119853,1.68870563,3220.4,3220.0,0.002]
[1767675120155,4.79392581,3220.4,3220.0,0.002]
[1767675120380,0.47939258,3220.3,3220.0,0.002]
[1767675122464,1.25576536,3220.3,3220.0,0.002]
[1767675123055,4.36107547,3220.3,3220.0,0.002]
[1767675123731,1.25576536,3220.3,3220.0,0.002]
[1767675124258,0.47939258,3220.3,3220.0,0.002]
[1767675129876,3.58474542,3220.3,3220.0,0.002]
[1767675130030,0.44969408,3220.2,3219.5,0.95151369]
[1767675130457,1.38058042,3220.2,3219.5,0.95151369]
[1767675131136,4.4860208,3220.2,3219.5,0.95151369]
[1767675131671,0.83677464,3220.1,3219.5,0.95151369]
[1767675131878,0.90402851,3220.0,3219.4,0.002]
[1767675132567,1.8350044,3220.0,3219.4,0.002]
[1767675132962,0.90402851,3220.0,3219.4,0.002]
[1767675133136,0.17408032,3219.9,3219.4,0.002]
[1767675133338,4.21074616,3219.9,3219.4,0.002]
[1767675134166,0.90402851,3219.8,3219.4,0.002]
[1767675135161,4.00981449,3219.8,3219.4,0.002]
[1767675135402,4.00981449,3219.8,3219.5,0.002]
[1767675135568,0.8220574,3219.7,3219.5,0.002]
[1767675135764,1.75308819,3219.7,3219.5,0.002]
[1767675136138,2.6571167,3219.7,3219.5,0.002]
[1767675136338,2.6571167,3219.7,3219.4,0.002]
[1767675137169,5.76303653,3219.7,3219.4,0.002]
[1767675137336,1.48033216,3219.6,3219.4,0.002]
[1767675137848,0.90402851,3219.6,3219.4,0.002]
[1767675138039,1.75308819,3219.7,3219.4,0.002]
[1767675142383,0.93103079,3219.7,3219.4,0.95351369]
[1767675148051,0.93103079,3219.7,3219.4,0.002]
[1767675149177,0.88233262,3219.7,3219.4,0.002]
[1767675151257,4.00962296,3220.0,3219.4,0.002]
[1767675151455,0.93103079,3219.9,3219.4,0.002]
[1767675152593,0.93103079,3219.9,3219.4,0.95075454]
[1767675153584,3.10545647,3220.2,3219.4,0.95075454]
[1767675154679,0.92191008,3220.1,3219.4,0.95075454]
[1767675154879,0.92191008,3220.1,3219.4,0.91969286]
[1767675155081,0.92191008,3220.1,3219.5,0.94875358]
[1767675155288,3.10545647,3220.2,3219.5,0.94875358]
[1767675155477,3.90944779,3220.2,3219.5,0.91769286]
[1767675156491,4.83135787,3220.2,3219.5,0.91769286]
[1767675157482,4.0274219,3220.1,3219.4,0.91969286]
[1767675158893,0.92191008,3220.0,3219.4,0.002]
[1767675159097,1.01515162,3219.9,3219.4,0.002]
[1767675159395,0.92191008,3219.7,3219.4,0.002]
[1767675160092,0.92191008,3219.7,3219.1,0.0009859]
[1767675160509,0.92191008,3219.6,3219.1,0.0009859]
[1767675161798,4.59282139,3219.8,3219.1,0.0009859]
[1767675162195,0.56509787,3219.8,3219.1,0.91867876]
[1767675162493,0.001,3219.8,3219.1,0.91867876]
[1767675163083,3.10678815,3219.8,3219.1,0.91867876]
[1767675163476,4.02869823,3219.8,3219.1,0.91867876]
[1767675166389,0.92191008,3219.7,3219.1,0.91867876]
[1767675166597,0.92191008,3219.6,3219.1,0.0009859]
[1767675166764,0.92191008,3219.5,3219.1,0.0009859]
[1767675171682,0.92191008,3219.5,3219.4,0.002]
[1767675172673,0.40286982,3219.6,3219.4,0.002]
[1767675178909,3.50885007,3219.6,3219.4,0.002]
[1767675179110,0.44307601,3219.5,3219.4,0.002]
[1767675180087,0.44307601,3219.5,3219.1,0.0009859]
[1767675180088,0.44307601,3219.5,3219.0,0.002]
[1767675180291,0.95561127,3219.3,3218.8,0.002]
[1767675180880,4.06189177,3219.3,3218.8,0.002]
[1767675181199,5.29490392,3219.3,3218.8,0.002]
[1767675181401,5.27602149,3219.3,3218.8,0.002]
[1767675183982,5.27602149,3219.3,3218.6,0.98372068]
[1767675183983,0.99024198,3219.2,3218.6,0.98372068]
[1767675184613,0.99024198,3219.2,3218.6,0.98271464]
[1767675185178,3.10645832,3219.1,3218.8,0.002]
[1767675186709,4.09662804,3219.2,3218.8,0.002]
[1767675189527,3.10638606,3219.2,3218.8,0.002]
[1767675189691,0.31073861,3219.1,3218.8,0.002]
[1767675190107,0.001,3219.3,3218.8,0.98572068]
[1767675190326,0.001,3219.3,3219.0,0.98372068]
[1767675192123,0.001,3219.8,3219.3,0.98372068]
[1767675192293,3.10679153,3219.8,3219.3,0.98372068]
[1767675192695,0.001,3219.8,3219.3,0.98372068]
[1767675197328,0.001,3219.5,3219.3,0.98372068]
[1767675204155,0.001,3219.5,3218.9,0.98372068]
[1767675206740,0.001,3219.8,3219.4,0.98372068]
[1767675208341,0.99024198,3219.7,3218.8,0.002]
[1767675208639,0.99024198,3219.6,3218.8,0.002]
[1767675208941,3.10594843,3219.7,3218.9,0.98372068]
[1767675209321,0.99024198,3219.6,3218.8,0.002]
[1767675209620,0.99024198,3219.6,3218.8,0.98572068]
[1767675209820,0.99024198,3219.6,3218.9,0.49065506]
[1767675210222,0.001,3219.5,3218.9,0.49065506]
[1767675210521,0.001,3219.5,3218.9,1.47437574]
[1767675211339,0.001,3219.5,3218.9,0.98372068]
[1767675213844,0.001,3219.5,3218.8,0.002]
[1767675213845,0.97383456,3219.5,3218.8,0.002]
[1767675214348,0.96651711,3219.5,3218.8,0.002]
[1767675215646,4.07266621,3219.5,3218.8,0.002]
[1767675216021,0.97283456,3219.4,3218.8,0.002]
[1767675217745,0.97283456,3219.4,3218.8,0.99968665]
[1767675219122,4.07902471,3219.4,3218.8,0.99968665]
[1767675221951,0.97283456,3219.4,3218.8,0.99968665]
[1767675223049,0.97283456,3219.4,3219.1,0.002]
[1767675223224,0.40789525,3219.3,3219.1,0.002]
[1767675226059,0.97283456,3219.2,3219.1,0.002]
[1767675231059,3.10603679,3219.6,3219.1,0.002]
[1767675231259,4.07887135,3219.6,3219.1,0.002]
[1767675241676,7.18491787,3219.6,3219.1,0.002]
[1767675241876,0.71849179,3219.5,3219.1,0.002]
[1767675243867,3.82456808,3219.5,3219.1,0.002]
[1767675246562,3.82173098,3219.5,3219.1,0.002]
[1767675251288,0.71565469,3219.5,3219.1,0.002]
[1767675251581,0.001,3219.8,3219.2,0.91140044]
[1767675252486,3.10678627,3219.8,3219.2,0.91140044]
[1767675253283,0.001,3219.8,3219.2,0.91140044]
[1767675257965,0.001,3219.8,3219.4,0.002]
[1767675258166,0.001,3219.8,3219.5,0.91140044]
[1767675264493,0.001,3219.8,3219.4,0.002]
[1767675265397,0.001,3219.8,3219.4,0.91340044]
[1767675265597,0.001,3219.8,3219.4,0.002]
[1767675265778,0.92468003,3219.8,3219.4,0.002]
[1767675266870,4.03049492,3219.8,3219.4,0.002]
[1767675267097,4.28306053,3219.8,3219.4,0.002]
[1767675270598,0.001,3219.5,3219.4,0.002]
[1767675278613,3.10578314,3219.7,3219.4,0.002]
[1767675278983,0.97933713,3219.6,3219.1,0.002]
[1767675279317,2.16116385,3219.6,3219.1,0.002]
[1767675281109,3.10607237,3219.5,3219.1,0.002]
[1767675287807,4.0854095,3219.5,3219.1,0.002]
[1767675292716,3.10607237,3219.5,3219.1,0.002]
[1767675298228,4.28783097,3219.6,3219.1,0.002]
[1767675298921,1.18182672,3219.6,3219.1,0.9788871]
[1767675299220,4.08525497,3219.7,3219.1,0.9788871]
[1767675300551,3.10678296,3219.8,3219.1,0.9788871]
[1767675301323,6.21256592,3219.8,3219.1,0.9788871]
[1767675301516,7.15403372,3219.8,3219.1,0.9788871]
[1767675305638,7.15403372,3219.8,3219.4,0.002]
[1767675305837,0.72472753,3219.7,3219.4,0.002]
[1767675306040,0.001,3219.5,3219.4,0.002]
[1767675314051,0.001,3219.5,3219.1,0.9788871]
[1767675317748,0.001,3219.5,3219.4,0.002]
[1767675319447,0.001,3219.5,3219.4,0.9292674]
[1767675325556,0.001,3219.5,3219.4,0.002]
[1767675327960,0.9424678,3219.5,3219.4,0.002]
[1767675329659,3.10678296,3219.8,3219.4,0.002]
[1767675329878,0.76416179,3220.7,3219.4,0.9292674]
[1767675330153,0.31982,3220.6,3219.4,0.9292674]
[1767675331957,3.4249195,3220.6,3219.4,0.9292674]
[1767675332256,3.4249195,3220.6,3219.5,0.96809956]
[1767675332457,3.4249195,3220.6,3219.7,0.96809956]
[1767675337057,0.76416179,3220.5,3219.7,0.96809956]
[1767675337258,1.57816179,3220.5,3219.7,0.96809956]
[1767675339260,0.814,3220.5,3219.7,0.96809956]
[1767675340344,0.001,3220.3,3219.7,0.96809956]
[1767675349241,0.001,3220.3,3219.9,0.96809956]
[1767675349787,4.03660416,3220.9,3220.2,0.96809956]
[1767675350082,0.76416179,3220.8,3219.9,0.03105686]
[1767675350283,1.57916179,3220.9,3220.0,0.96809956]
[1767675350487,1.57916179,3220.9,3220.1,0.40737545]
[1767675350488,0.76416179,3220.8,3220.1,0.40737545]
[1767675351677,0.815,3220.9,3220.2,0.96809956]
[1767675351840,0.001,3220.9,3220.2,0.96809956]
[1767675352247,0.001,3220.3,3220.2,0.96809956]
[1767675352548,0.76516179,3220.9,3220.1,0.40737545]
[1767675352750,0.76516179,3220.9,3220.2,0.44810322]
[1767675354980,0.001,3220.9,3220.3,0.99079488]
[1767675356470,0.001,3220.9,3220.4,0.99079488]
[1767675361572,0.76516179,3220.9,3220.1,0.98412358]
[1767675361880,0.76416179,3220.7,3219.7,0.98412358]
[1767675362049,3.86927572,3220.5,3219.7,0.98412358]
[1767675363054,0.76416179,3220.5,3219.7,0.98412358]
[1767675363275,0.76416179,3220.5,3219.8,0.98412358]
[1767675363475,0.001,3221.7,3220.9,0.98412358]
[1767675363674,3.87061864,3221.2,3220.1,0.98412358]
[1767675363884,0.76516179,3221.1,3220.1,0.98412358]
[1767675364082,0.76516179,3221.0,3220.1,0.98412358]
[1767675366656,0.76516179,3221.0,3220.1,3.51445071]
[1767675366861,0.76516179,3221.0,3220.2,0.98412358]
[1767675367688,0.76516179,3221.0,3220.2,0.98612358]
[1767675368188,0.001,3220.6,3220.2,0.98612358]
[1767675368489,0.76516179,3221.0,3220.2,0.002]
[1767675369393,0.76516179,3221.0,3220.2,0.35364507]
[1767675369883,0.76516179,3221.0,3220.3,0.98412358]
[1767675375794,0.001,3221.2,3220.4,0.98412358]
[1767675375971,0.001,3221.7,3221.1,0.98412358]
[1767675377295,0.76616179,3221.7,3220.5,0.98412358]
[1767675377598,0.76616179,3221.7,3220.7,0.98412358]
[1767675378392,0.001,3221.7,3220.7,0.98412358]
[1767675378584,0.813,3221.6,3220.7,0.98412358]
[1767675378786,0.813,3221.6,3220.9,0.98412358]
[1767675380402,0.001,3221.7,3221.0,0.98412358]
[1767675380609,0.814,3221.7,3221.0,0.98412358]
[1767675383818,0.001,3221.3,3221.0,0.98412358]
[1767675384114,0.76516179,3221.6,3220.9,3.10471269]
[1767675384325,0.76516179,3221.6,3221.0,0.38703476]
[1767675384678,0.814,3221.7,3221.1,0.94958659]
[1767675396425,0.814,3221.7,3221.2,0.90360475]
[1767675396717,0.001,3221.4,3221.2,0.90360475]
[1767675396919,0.814,3221.7,3221.2,0.002]
[1767675397104,0.79969878,3221.6,3221.2,0.002]
[1767675398099,0.814,3221.7,3221.2,0.002]
[1767675399816,0.814,3221.7,3221.2,0.90360475]
[1767675411030,0.814,3221.7,3221.4,0.002]
[1767675412633,0.001,3221.7,3221.4,0.002]
[1767675412821,0.814,3221.7,3221.4,0.002]
[1767675414125,0.814,3221.7,3221.2,0.89174231]
[1767675422051,1.62356122,3221.7,3221.0,0.002]
[1767675422354,0.814,3221.7,3221.1,0.92152987]
[1767675424158,3.91795737,3221.7,3221.1,0.92152987]
[1767675424550,0.002,3221.4,3221.1,0.92152987]
[1767675424933,0.814,3221.7,3221.1,1.32455223]
[1767675425132,0.80956122,3221.6,3221.1,0.40302236]
[1767675427453,0.814,3221.7,3221.1,0.40302236]
[1767675427661,0.814,3221.7,3221.2,0.92152987]
[1767675428133,0.814,3221.7,3221.4,0.92152987]
[1767675429738,0.001,3221.7,3221.4,0.92152987]
[1767675430049,0.814,3221.7,3221.1,0.92152987]
[1767675433968,0.814,3221.7,3221.2,0.92152987]
[1767675436262,0.814,3221.7,3221.4,0.002]
[1767675444473,3.91796325,3221.7,3221.4,0.002]
[1767675444671,3.91796325,3221.7,3221.2,0.9169433]
[1767675447270,0.814,3221.7,3221.2,0.9169433]
[1767675448270,3.9179548,3221.7,3221.2,0.9169433]
[1767675448571,0.002,3221.4,3221.2,0.9169433]
[1767675448773,3.9179548,3221.7,3221.2,0.9169433]
[1767675451471,4.70109572,3221.7,3221.2,0.9169433]
[1767675453265,3.9179548,3221.7,3221.2,0.9169433]
[1767675453876,0.814,3221.7,3221.2,0.9169433]
[1767675456176,3.91797415,3221.7,3221.2,0.9169433]
[1767675457877,0.81414779,3221.6,3221.0,0.002]
[1767675458052,0.81414779,3221.6,3220.9,0.002]
[1767675458252,3.91838818,3221.4,3220.9,0.002]
[1767675458759,0.81414779,3221.3,3220.9,0.002]
[1767675458961,0.813,3221.2,3220.9,0.002]
[1767675461354,3.91745062,3221.2,3220.9,0.002]
[1767675462080,0.813,3221.2,3220.9,0.002]
[1767675465714,3.91744479,3221.2,3220.9,0.002]
[1767675466383,3.91744479,3221.2,3220.4,0.90929423]
[1767675466384,0.81414779,3221.1,3220.4,0.90929423]
[1767675467283,0.81414779,3221.1,3220.4,0.002]
[1767675467471,0.81414779,3221.1,3220.2,0.002]
[1767675467672,0.81414779,3220.9,3220.2,0.002]